Workbook

Sheet INTRODUCCIÓN
A1: Plan de Comunicación
A7: * La finalidad de esta herramienta es facilitar la elaboración de su plan de Comunicación, invitando a la reflexión mediante un recorrido por las distintas partes que lo componen. Una vez cumplimentadas todas las cuestiones que se plantean, obtendrá su plan de Comunicación elaborado.
A8: * El fin de la comunicación empresarial es construir una imagen positiva de la empresa, coherente con su filosofía y objetivos. El éxito y el impacto de un proyecto innovador, en gran medida, dependen de las actividades de comunicación y difusión.
A9: * El/la responsable de marketing debe liderar el proceso de planificación y definir la estrategia empresarial adecuada de producto-mercado para su empresa. Para ello, hay que realizar un análisis lo más detallado posible del mercado donde se va mover la empresa; habrá que conocer a la clientela y a la competencia y decidir con que técticas se va a abordar cada meta parcial.
A10: * El Plan de Comunicación debe ser un documento escueto, sin información redundante e innecesaria, estar bien estructurado, ser operativo y de fácil comprensión.
A12: El proceso de elaboración del Plan de Comunicación que seguiremos consta de los siguientes hitos principales: Fase analítica > Diagnóstico > Objetivos > Target Group > Mensaje > Presupuesto > Estrategia y plan de acción > Control y seguimiento > Impacto y resultado > Marketing del Plan
A14: COMENCEMOS…
B16: INSTRUCCIONES PARA CUMPLIMENTAR PLAN DE COMUNICACIÓN
B18: FASE 1.
B20: FASE 2.
B22: FASE 3.
B24: FASE 4.
B26: FASE 5.
B28: FASE 6.
B30: FASE 7.
B32: FASE 8.
B34: FASE 9.
B36: FASE 10.
B40: RESUMEN EJECUTIVO PLAN DE COMUNICACIÓN
A43: Fuentes consultadas: manual de marketing elaborado por Nao, S. C. A., Guía de apoyo al Emprendedor del CEEI Cuidad Real, Manuales prácticos de la pyme. BIC Galicia. D. Javier Barranco Saiz. Licenciado en Ciencias Físicas y en Gestión Comercial y Marketing (ESIC) y Estudio Infoadex de la inversión publicitaria en España 2011.

Sheet INSTRUCCIONES PARA CUMPLIMENTAR
A1: Instrucciones para cumplimentar el plan de Comunicación | H1: MENÚ PRINCIPAL
A7: → • Intente responder y reflexionar sobre el mayor número de apartados posibles.
A9: → • En cada apartado dispone de unos comentarios que le ayudarán a comprender e interpretar cada parte del plan de Comunicación. Los comentarios sombreados en color gris puede borrarlos una vez haya contestado cada apartado, pues responden a una mera intención aclaratoria y de ayuda para el logro de los fines perseguidos en cada fase.
A11: → • Se recomienda recurrir a la ayuda de las herramientas "Estudio de Mercado" y "Plan de Marketing" de uso libre y gratuito. Es importante para concretar, definir y perfilar las políticas de segmentación, posicionamiento, producto / servicio, precio, distribución y comunicación que integran, en parte, el "Plan Estratégico de Comunicación Integral de la empresa". En definitiva, el "Plan de Comunicación" es parte imprescindible del plan de marketing, y éste a su vez está integrado dentro del plan de negocio de la empresa. Por tanto, el estudio de viabilidad de un proyecto se sustenta en las previsiones resultantes de un buen estudio de mercado, de un adecuado Plan de Marketing que integre un Plan de Comunicación que contribuya a la ejecución del "Plan de empresa".
A13: → • Al final de cada fase visualizará un apartado "resumen" que será el que se trasladará al resumen ejecutivo del "Plan de Comunicación". Tenga especial cuidado en su redacción y cerciórese de que en el mismo se recogen los aspectos más significativos que considere aptos para mencionar en el informe final.
A15: → • Cada hoja de la herramienta (formato excel) está configurada para que se pueda imprimir. Si usted modifica el ancho de las columnas y/o añade alguna nueva, recuerde que deberá ajustar la configuración de nuevo antes de su impresión.Es aconsejable que antes de imprimir el resumen ejecutivo del plan de Comunicación, recurra a la "vista preliminar" para asegurarse de que la configuración es correcta.
A17: → • Si lo considera conveniente, podrá adjuntar todos los anexos que considere necesarios al final del documento.
A19: → • Igualmente, podrá incorporar tantas fotos, tablas y gráficos como considere convenientes para ilustrar mejor el plan de Comunicación.
A22: Y recuerde, no imprama aquello que realmente no sea necesario, así contribuirá a la conservación de los recursos naturales
H25: FASE 1

Sheet RES. EJECUTIVO PLAN COMUNICAC
A1: Resumen ejecutivo: PLAN DE COMUNICACIÓN | H1: MENÚ PRINCIPAL
A22: PLAN DE COMUNICACIÓN
A23: dd/mm/aa
B40: CONTENIDOS
B42: 1. Fase analítica.
B43: 2. Diagnostico.
B44: 3. Planificación de objetivos.
B45: 4. Planificación de la segmentación.
B46: 5. Mensaje.
B47: 6. Presupuesto.
B48: 7. Estrategia de Comunicación y Plan de Acción.
B49: 8. Control y seguimiento de su realización física y financiera.
B50: 9. Impacto y resultados.
A57: RESUMEN EJECUTIVO DEL PLAN DE COMUNICACIÓN
A59: Nombre de la empresa / proyecto: | C59: Introduzca el nombre de la empresa / proyecto
A61: Fecha de elaboración: | C61: Introduzca la fecha de elaboración
A63: Emprendedores promotores: | C63: Introduzca el/los nombre/s de el/los promotor/es del proyecto
A67: 1. FASE ANALÍTICA
A69: Análisis Interno.
A71: ='1. FASE ANALÍTICA'!A94:K94 -> En este apartado se intentarán concretar los aspectos más significativos relativos al análisis interno realizado a través de las cuestiones anteriormente planteadas
A73: Análisis Externo.
A75: ='1. FASE ANALÍTICA'!A98:K98 -> En este apartado se intentarán concretar los aspectos más significativos relativos al análisis externo realizado a través de las cuestiones anteriormente planteadas
A77: Análisis del mercado actual (año n): | D77: Segmentos | E77: Valor (facturación, €)
D79: ='1. FASE ANALÍTICA'!D79 -> Segmento 1 | E79: ='1. FASE ANALÍTICA'!E79 -> 350000
D80: ='1. FASE ANALÍTICA'!D80 -> Segmento 2 | E80: ='1. FASE ANALÍTICA'!E80 -> 180000
D81: ='1. FASE ANALÍTICA'!D81 -> Segmento 3 | E81: ='1. FASE ANALÍTICA'!E81 -> 250000
D82: ='1. FASE ANALÍTICA'!D82 -> Segmento 4 | E82: ='1. FASE ANALÍTICA'!E82 -> 320000
A85: Análisis de la competencia actual (año n): | D85: Principales competidores | E85: % cuota mercado
D87: ='1. FASE ANALÍTICA'!D87 -> Competidor 1 | E87: ='1. FASE ANALÍTICA'!F87 -> 0.2
D88: ='1. FASE ANALÍTICA'!D88 -> Competidor 2 | E88: ='1. FASE ANALÍTICA'!F88 -> 0.15
D89: ='1. FASE ANALÍTICA'!D89 -> Competidor 3 | E89: ='1. FASE ANALÍTICA'!F89 -> 0.37
D90: ='1. FASE ANALÍTICA'!D90 -> Competidor 4 | E90: ='1. FASE ANALÍTICA'!F90 -> 0.28
A94: 2. DIAGNÓSTICO
A96: Análisis DAFO: Resumen del diagnóstico - Conclusiones-.
A98: ='2. DIAGNÓSTICO'!A16:K16 -> En este apartado se intentarán concretar los aspectos más significativos relativos al análisis DAFO realizado con la ayuda de las tablas anteriormente planteadas
A100: 3. PLANIFICACIÓN DE OBJETIVOS
A102: ='3. PLANIFICACIÓN - OBJETIVOS'!A17:K17 -> En este apartado se intentarán concretar los aspectos más significativos relativos a la planificación de objetivos a través de las cuestiones anteriormente planteadas
A104: 4. PLANIFICACIÓN DE LA SEGMENTACIÓN
A106: ='4. PLANIFICACIÓN - SEGMENTACIÓN'!A92:K92 -> En este apartado se intentarán concretar los aspectos más significativos relativos a la estrategia de segmentación que acometerá la empresa, a través de las cuestiones anteriormente planteadas.
A108: 5. EL MENSAJE
A110: ='5. MENSAJE'!A34:K34 -> En este apartado se intentarán concretar los aspectos más significativos relativos al mensaje que transmitirá la empresa, a través de las cuestiones anteriormente planteadas
B112: Aspectos a difundir | C112: Mensaje | D112: Actividad o resultado concreto
B113: ='5. MENSAJE'!B9:D9 -> La creatividad como base de la innovación y de la competitividad | C113: “Creatividad e Imaginación son la base de la innovación en nuestra sociedad /empresas” | D113: Mensaje para las jornadas de difusión de la guía de buenas prácticas
B114: ='5. MENSAJE'!B10:D10 -> Las ideas y la creatividad son esenciales para el crecimiento económico | C114: “Nuevas ideas para seguir creciendo – la creatividad crea empleo y riqueza” | D114: Mensaje para el Informe Final, la Conferencia final y la Página web
B115: ='5. MENSAJE'!B11:D11 -> La calidad como base para fidelizar a la clientela | C115: "La calidad del producto y del servico postventa -- determinantes del comportamiento del consumidor y de la supervicencia de la empresa" | D115: Mensaje en el primer folleto general
B116: ='5. MENSAJE'!B12:D12 -> Intercambio de experiencias en el ámbito de la creatividad empresarial | C116: “Ser creativo, ser emprendedor, ser innovador – aprender creando en compañía” | D116: Mensaje para invitación a y el material promocional de los talleres de creatividad
A118: 6. PRESUPUESTO
A120: ='6. PRESUPUESTO'!A19:K19 -> En este apartado se intentarán concretar los aspectos más significativos relativos a la concreción del presupuesto asignado al plan de comunicación, a través de las cuestiones anteriormente planteadas
B123: PRESUPUESTO PLAN DE COMUNICACIÓN dd/mm/aa - dd/mm/aa
B124: HERRAMIENTA | C124: PASES (FRECUENCIA) | E124: COSTE, €
C125: TOTAL | D125: % | E125: TOTAL | F125: %
B126: Prensa | C126: 9 | D126: =C126/$C$131 -> 0.03474903475 | E126: 450 | F126: =E126/$E$131 -> 0.02097902098
B127: Radio | C127: 60 | D127: =C127/$C$131 -> 0.2316602317 | E127: 1800 | F127: =E127/$E$131 -> 0.08391608392
B128: TV | C128: 180 | D128: 0.694980695 | E128: 18000 | F128: 0.8391608392
B129: Web | C129: 9 | D129: 0.03474903475 | E129: 0 | F129: 0
B130: Vallas exteriores | C130: 1 | D130: 0.003861003861 | E130: 1200 | F130: 0.05594405594
B131: TOTAL | C131: =SUM(C126:C130) -> 259 | D131: 1 | E131: =SUM(E126:E130) -> 21450 | F131: 1
A133: 7. ESTRATEGIA DE COMUNICACIÓN Y PLAN DE MEDIOS
A135: ='7. ESTRATEGIA - PLAN DE MEDIOS'!A110:K110 -> En este apartado se intentarán concretar los aspectos más significativos relativos a la estrategia de comunicación y plan de acción que adoptará la empresa, a través de las cuestiones anteriormente planteadas
A136: A continuación, de manera gráfica, mencionamos los tres ejes de actuación que forman los pilares de la estrategia de comunicación y difusión que se va a llevar a cabo. Éstos preven la adecuación coherente de actividades y herramientas de comunicación a los diferentes objetivos y grupos de destinatarios.
A146: De manera esquemática, se plantea la relación entre las tres variables implicadas en el Plan de Comunicación que se presenta:
A147: Destinatarios | B147: Destinatarios directos internos | C147: Destinatarios directos externos | D147: Destinatarios generales
A148: Objetivos | D148: Decisores políticos | E148: Medios de comunicación | F148: Sociedad
A149: Comunicación sistematizada | B149: Página web Herramientas web Informes de actividad
A150: Información fluida | B150: Reuniones Herramientas de telecomunicación
A151: Divulgar el proyecto | C151: Página Web Folletos | D151: Página Web Folletos | E151: Página Web Folletos | F151: Página Web Folletos
A152: Dar a conocer resultados | C152: Página Web Folletos | D152: Página Web Folletos | E152: Página Web Folletos | F152: Página Web Folletos
A153: Material de referencia de trabajo | C153: Publicaciones Seminarios Mesas Talleres | D153: Publicaciones Páginas Web Eventos
A154: Nuevos conocimientos como base para decisión política | D154: Publicaciones Páginas Web Eventos
A155: Promover la creatividad y la innovación | C155: Publicaciones Seminarios Mesas Talleres | F155: Publicaciones Páginas Web Folletos
A156: Comunicación transparente | E156: Notas de prensa | F156: Notas de prensa Eventos
A158: Definida la estrategia de comunicación, el plan de medios y cronograma a seguir determina la planificación en el tiempo de cada una de las actividades a desarrollar y los medios que se utilizarán para ello, tal como se expresa en la siguiente tabla:
B160: HERRAMIENTAS | C160: TOTAL PASES | D160: COSTE UNITARIO | E160: OBSERVACIONES | F160: COSTE TOTAL
B161: Prensa | C161: 9 | D161: 50 | E161: Anuncio 1 vez/semana | F161: 450
B162: Radio | C162: 60 | D162: 30 | E162: Cuña diaria de 45 seg | F162: 1800
B163: TV | C163: 180 | D163: 100 | E163: TV local. 3 Anuncios diarios en prime tame | F163: 18000
B164: Web | C164: 9 | D164: 0 | E164: E-mail semanal | F164: 0
B165: Vallas exteriores | C165: 1 | D165: 1200 | E165: Valla publicitaria en la Crta. N-IV, Hm 3,5. | F165: 1200
F166: 21450
B167: Anexo I: Cronograma completo del plan de comunicación.
A169: 8. CONTROL Y SEGUIMIENTO DE SU REALIZACIÓN FÍSICA Y FINANCIERA. INDICADORES
A171: ='8. CONTROL Y SEGUIMIENTO'!A32:K32 -> En este apartado se intentarán concretar los aspectos más significativos relativos al control y seguimiento de la realización física y financiera del plan de comunicación que llevará a cabo la empresa, mediante la construcción de indicadores de realización, a través de las cuestiones anteriormente planteadas. Insertar tantas tablas como indicadores se hayan construido.
B173: Código identificativo | D173: Tipo de indicador | E173: REALIZACIÓN
B174: Denominación | C174: Publicidad en el teléfono móvil
B175: Objetivo con el que se relaciona | C175: Plan de comunicación
B176: Definición normalizada | C176: Suscriptores en el ámbito nacional, a los que se les ha remitido sms promocional de nuestros servicios / productos, duante el periodo de campaña promocional (01/11/11 al 31/01/12), mediante un sms a su número de teléfiono móvil .
B177: Procedimiento de elaboración | C177: Suma de los sms enviados informando de nuestra campaña promocional hasta el final del pediodo de promoción (31/01/12).
B178: Unidad de medida | C178: sms enviados | D178: Periodicidad | E178: trimestral
B179: Fuente | C179: Plataforma de lanzamiento de sms
B180: Departamento responsable | C180: Dpto. Marketing.
B181: Contabilizable/ no contabilizable | C181: contabilizable | D181: Stock/flujo | E181: stock
B182: Dimensional/adimensional | C182: Dimensional | D182: Absoluto/relativo | E182: Absoluto
A184: 9. IMPACTO Y RESULTADOS. INDICADORES
A186: ='9. IMPACTO Y RESULTADOS'!A36:K36 -> En este apartado se intentarán concretar los aspectos más significativos relativos a la medición de resultados e impactos del plan de comunicación llevado a cabo, mediante la construcción de indicadores de impacto y resultados, a través de las cuestiones anteriormente planteadas. Insertar tantas tablas como indicadores se hayan construido.
B188: Código identificativo | D188: Tipo de indicador | E188: RESULTADO
B189: Denominación | C189: Volumen de compras inducido entre los suscriptores
B190: Objetivo con el que se relaciona | C190: Plan de Comunicación
B191: Definición normalizada | C191: Volumen de compras inducido/realizado por los destinatarios de la campaña promocional llevada a cabo mediante sms a teléfonos móviles, en el ámbito geográfico en el que se ha realizado y en el periodo de tiempo que ha durado la campaña promocional
B192: Procedimiento de elaboración | C192: Suma de las compras efectuadas desde el 01/11/11 al 31/01/12 a nivel nacional.
B193: Unidad de medida | C193: euros | D193: Periodicidad | E193: trimestral
B194: Fuente | C194: Contabilidad de la empresa (Ingresos netos por ventas)
B195: Departamento responsable | C195: Dpto. Contabilidad
B196: Contabilizable/ no contabilizable | C196: Contabilizable | D196: Stock/flujo | E196: Stock
B197: Dimensional/adimensional | C197: Dimensional | D197: Absoluto/relativo | E197: Absoluto
B200: Código identificativo | D200: Tipo de indicador | E200: IMPACTO
B201: Denominación | C201: Aumento de las ventas
B202: Objetivo con el que se relaciona | C202: Plan de Comunicación
B203: Definición normalizada | C203: Aumento de las ventas (EXPRESADAS EN EUROS)
B204: Procedimiento de elaboración | C204: Diferencial entre las ventas realizadas a nuestros suscriptores en el trimestre 01/11/11 - 31/01/12 con respecto las ventas del mismo periodo del año anterior (01/11/10 - 31/01/11).
B205: Unidad de medida | C205: % | D205: Periodicidad | E205: trimestral
B206: Fuente | C206: Contabilidad de la empresa (Ingresos netos por ventas)
B207: Departamento responsable | C207: Dpto. Contabilidad
B208: Contabilizable/ no contabilizable | C208: No contabilizable | D208: Stock/flujo | E208: Flujo
B209: Dimensional/adimensional | C209: Dimensional | D209: Absoluto/relativo | E209: Relativo
H211: MENÚ PRINCIPAL

Sheet 1. FASE ANALÍTICA
A1: 1. FASE ANALÍTICA: Análisis interno y externo. | H1: MENÚ PRINCIPAL | J1: FASE 2
A3: Basándose en su proyecto empresarial, comenzaremos a realizar el Plan de Comunicación.
A4: Para ello empezaremos por un análisis interno sobre la propia empresa, después continuaremos con un análisis externo.
A5: A continuación le planteamos una serie de cuestiones sobre las que deberá reflexionar y responder:
A7: Análisis Interno: el análisis de la empresa proporciona información importante para el plan de Comunicación.
A9: Objeto social de la empresa:
A11: Descripción breve de los productos / servicios:
A13: Características de la empresa:
B15: Razón social:
B17: Domicilio Social:
B19: Municipio:
B21: Provincia:
B23: Antecedentes de los promotores:
C25: • Motivos de la iniciativa empresarial
C27: • Objetivos personales para poner en marcha la empresa
C29: • Indicar en qué ayudará la experiencia profesional previa en la presente iniciativa
C31: • Indicar cómo se resolverán los problemas del trabajo en grupo
C33: • Datos de los promotores: nombre, apellidos, número D. N. I., profesión y edad.
C35: • Participaciones sociales.
C37: • Novedades de la idea
C39: • Tecnología
C41: • Herramientas de promoción y comunicación
C43: • Descripción de las instalaciones
C45: • Organización del servicio
C47: • Seguros, permisos y Prevención de Riesgos Laborales
A50: Análisis Externo: el análisis del micro y macro entornos proporciona información importante para el plan de Comunicación.
A52: Macroentorno. Procurar exponer todas las tendencias importantes para la actividad de la empresa relativas a:
A54: Tendencias del entorno demográfico:
A56: Tendencias del entorno económico:
A58: Tendencias del entorno mediambiental:
A60: Tendencias del entorno tecnológico:
A62: Tendencias del entorno político:
A64: Tendencias del entorno cultural:
A66: Microentorno. En este apartado se analizan todos los actores importantes para la empresa:
A68: Suministradores:
A70: Distribuidores:
A72: Empresas de almacenamiento y/o transporte:
A74: Agencias de servicios de marketing:
A76: El mercado. Los clientes:
A78: Análisis del mercado actual (año n): | D78: Segmentos | E78: Valor (facturación, €)
D79: Segmento 1 | E79: 350000
D80: Segmento 2 | E80: 180000
D81: Segmento 3 | E81: 250000
D82: Segmento 4 | E82: 320000
A84: La competencia:
A86: Análisis de la competencia actual (año n): | D86: Principales competidores | F86: % cuota mercado
D87: Competidor 1 | F87: 0.2
D88: Competidor 2 | F88: 0.15
D89: Competidor 3 | F89: 0.37
D90: Competidor 4 | F90: 0.28
F91: =SUM(F87:F90) -> 1
A92: RESUMEN DEL ANÁLISIS INTERNO
A94: En este apartado se intentarán concretar los aspectos más significativos relativos al análisis interno realizado a través de las cuestiones anteriormente planteadas
A96: RESUMEN DEL ANÁLISIS EXTERNO
A98: En este apartado se intentarán concretar los aspectos más significativos relativos al análisis externo realizado a través de las cuestiones anteriormente planteadas
J101: FASE 2

Sheet 2. DIAGNÓSTICO
A1: 2. DIAGNÓSTICO: matriz DAFO y conclusiones. | H1: MENÚ PRINCIPAL | J1: FASE 3
A3: Análisis DAFO:
A5: Hemos llegado a un punto muy significativo, de tremenda importancia para los/as empresarios/as, porque consiste en un resumen estratégico de nuestra situación con respecto a las demás fuerzas que operan en el mercado, incluidos el público objetivo y la competencia. En dicho análisis se contemplan las oportunidades y amenazas que haya podido detectar (en el macro y en el micro entorno), así como los puntos fuertes y débiles que considere presenta la empresa frente a su realidad. Para ello puede utilizar la siguiente tabla, añadiendo tantas filas como sean necesarias para completar su análisis. Esta se incluye también en el plan de Comunicación.
A7: ENTORNO | H7: EMPRESA
A8: OPORTUNIDADES | C8: AMENAZAS | H8: FORTALEZAS | J8: DEBILIDADES
A14: RESUMEN DEL DIAGNÓSTICO: Conclusiones.
A16: En este apartado se intentarán concretar los aspectos más significativos relativos al análisis DAFO realizado con la ayuda de las tablas anteriormente planteadas
H20: FASE 1 | J20: FASE 3

Sheet 3. PLANIFICACIÓN - OBJETIVOS
A1: 3. PLANIFICACIÓN: OBJETIVOS. | H1: MENÚ PRINCIPAL | J1: FASE 4
A3: * Un plan de comunicación es un conjunto de acciones de comunicación basadas en unos objetivos y presupuesto. Concretamente, el plan de comunicación forma parte del plan de marketing, no debiéndose contradecir entre ellos, sino complementarse. * Los objetivos del plan de comunicación deben concretarse en tiempo y espacio. Esto es, cumplirse en un tiempo determinado y en un área geográfica determinada; local, provincial, regional, nacional, internacional… * Los objetivos, a diferencia de los objetivos del plan de marketing, no pueden expresarse en términos de ventas. Deben ser realistas, alcanzables y cuantificados. * Los objetivos del Plan de Comunicación deben ser definidos por la Alta Dirección en colaboración con su equipo, ya que tienen que estar, necesariamente, alineados con la estrategia general de la empresa.
A5: Todo objetivo debe ser: MEDIBLE: Que puedan ser valorados en base a una escala establecida. AMBICIOSO PERO REALISTA: La consecución de nuestros objetivos debe suponer un esfuerzo y un reto, sin llegar a ser inalcanzables. A la vez, deberán ser suficientemente estimulantes para crear motivación y realizables, lo que implica disponibilidad de medios necesarios para ponerlos en la práctica. RELEVANTE: Nos propondremos objetivos importantes para la marcha del negocio. Deben ser factibles: Su consecución en el plazo previsto debe ser posible. ACOTADO EN EL TIEMPO: Todo objetivo debe estar limitado en el tiempo. Tienen que estar definidos en el tiempo y geográficamente. ESPECÍFICO: Los objetivos deben ser concretos o concretables. No debemos diseñar metas abstractas y difíciles de interpretar. Deben estar perfectamente descritos, ser claros y concisos, evitando frases extensas y complejas.
A7: Defina los objetivos para el plan de Comunicación, en coherencia con el análisis DAFO y con el resto de los objetivos del Plan de Marketing.
A9: Para ello tenga en cuenta que normalmente, se establece un objetivo general que, en definitiva, debe coincidir con aquello que básicamente se quiere comunicar, con la Imagen Corporativa a transmitir; y una serie de objetivos específicos, concretos y ordenados por prioridades o importancia relativa. Esto permitirá conducir el desarrollo de la estrategia de Comunicación, al tiempo que facilitará la detección de aquellos puntos o etapas en las que habrá que incidir con mayores esfuerzos.
A11: OBJETIVOS DE COMUNICACIÓN
A15: RESUMEN PLANIFICACIÓN DE OBJETIVOS
A17: En este apartado se intentarán concretar los aspectos más significativos relativos a la planificación de objetivos a través de las cuestiones anteriormente planteadas
H19: FASE 2 | J19: FASE 4

Sheet 4. PLANIFICACIÓN - SEGMENTACIÓN
A1: 4. PLANIFICACIÓN: SEGMENTACIÓN. DETERMINACIÓN DEL PÚBLICO OBJETIVO O TARGET GROUP | H1: MENÚ PRINCIPAL | J1: FASE 5
A3: Esta fase se analiza también en el Plan de Marketing. Es evidente que la segmentación debe determinar un target group al que posteriormente dirigiremos nuestro "mensaje". Las actividades de comunicación y difusión tienen como objetivo transmitir una serie de mensajes o informaciones a unos grupos de destinatarios claramente identificados. Si usted ya ha realizado la segmentación, solamente tendrá que trascribir el resultado en el apartado "RESUMEN DE LA PLANIFICACIÓN DE LA SEGMENTACIÓN". En caso contrario, a continuación le ayudamos a concretarlo:
A5: Segmentar un mercado es subdividirlo en conjuntos homogéneos de consumidores/as, de forma que cada uno de estos subconjuntos se pueda identificar claramente como mercado meta, y justifique el diseñar una estrategia de marketing adecuada para ese segmento.
A7: Un segmento de mercado consiste en un grupo grande que se puede identificar dentro de un mercado y que tiene deseos, poder de compra, ubicación geográfica, actitudes de compra o hábitos de compra similares.
A9: Un nicho es un grupo con una definición más estrecha, un mercado pequeño cuyas necesidades no están siendo bien atendidas. Normalmente se identifican los nichos dividiendo un segmento en subsegmentos, o definiendo un grupo que busca una combinación distintiva de beneficios.
A11: Mientras que los segmentos son relativamente grandes y por lo general atraen a varios competidores, los nichos son pequeños y normalmente sólo atraen a uno o dos.
A13: La esencia de la segmentación es conocer realmente a los consumidores. Uno de los elementos decisivos del éxito de una empresa es su capacidad de segmentar adecuadamente su mercado.
A15: La selección de mercados meta requiere de tres pasos principales:
B17: 1. Segmentación: Identificar y definir los perfiles de distintos grupos de compradores que podrían requerir productos / servicios distintos.
B19: 2. Selección de mercados meta: Seleccionar uno o más segmentos de mercado en los cuales penetrar.
B21: 3. Posicionamiento en el mercado: Establecer y comunicar los beneficios distintivos clave de los productos / servicios en el mercado.
A23: Una vez investigado y seleccionado su mercado meta, hay que aplicar políticas de marketing-mix (Producto, Precio, Comunicación y Distribución) diferentes para cada uno de los segmentos objetivo (target group o público objetivo).
A25: Las principales variables de segmentación de los mercados de negocio son:
B27: . Demográficas: tamaño de la empresa, sexo, edad, estado civil, tamaño de la familia, habitat urbano (rural, urbano, gran metrópoli), hábitat climatológico (zonas húmedas, secas, calurosas, frías, cálidas…), hábitat urbanístico (vivienda unifamiliar, piso, centro ciudad, urbanización...)…
B29: . Operativas; tecnología, capacidad de los clientes…
B31: . Enfoque de compras: criterios de compras, organización de la función de compras, bábitos de compras (periodicidad, lugares de compra…)…
B33: . Factores situacionales: urgencia, tamaño del pedido.
B35: . Características personales: similitud comprador – vendedor, actitudes hacia el riesgo, lealtad, nivel económico, nivel académico, aficiones (deportivas, intelectuales…) …
A37: Céntrese en el mercado en el que se encuadra su empresa, utilice su conocimiento sobre el mismo, e intente hacer una primera aproximación para segmentar dicho mercado (el mercado en general y no la parte del mismo sobre la que trabaje la empresa):
A39: Debemos concretar quienes van a ser nuetros futuros clientes (target group), definiendo su perfil. Para ello será recomendable averiguar más datos, como pueden ser, por ejemplo: cuál es su volumen, cómo está repartido actualmente el consumo entre los distintos competidores (cuatas de mercado), cuál es el grado de satisfacción de dicho público objetivo con los actuales proveedores, cuál es la percepción del precio que consideran equivalente, cuál es el coste de cambio de suministrador....
A41: ¿Qué variable/s de segmentación piensa que pueden ser determinantes para hacer su segmentación?
A45: Utilizando dicha/s variable/s, divida su mercado en diferentes segmentos y haga una descripción de cada uno de ellos.
A47: Análisis del mercado actual (año n): | D47: Segmentos | E47: Valor (facturación, €)
D48: ='1. FASE ANALÍTICA'!D79 -> Segmento 1 | E48: ='1. FASE ANALÍTICA'!E79 -> 350000
D49: ='1. FASE ANALÍTICA'!D80 -> Segmento 2 | E49: ='1. FASE ANALÍTICA'!E80 -> 180000
D50: ='1. FASE ANALÍTICA'!D81 -> Segmento 3 | E50: ='1. FASE ANALÍTICA'!E81 -> 250000
D51: ='1. FASE ANALÍTICA'!D82 -> Segmento 4 | E51: ='1. FASE ANALÍTICA'!E82 -> 320000
A55: Ahora sí nos vamos a centrar en la empresa. De los segmentos de mercado que ha obtenido, ¿a cuáles se va a dirigir su empresa?
A59: Ej. Imaginemos que ud. Decide abrir una tienda de de zapatos de diseño con unos precios que exceden la economía media de los habitantes del barrio en el que ha decidido ubicarse. Pese a que la aceptación del público sea evidente, muy pocos de ellos podrán adquirir un par de dichos zapatos, simplemente porque su poder adquisitivo no se lo permite. Al final, las escasas ventas y las pocas perspectivas de recuperar la inversión realizada, llevarán la persona empresaria a tomar una de estas 3 decisiones: trasladarse a una zona con ingresos familiares medios superiores, bajar la calidad de sus productos o cerrar el negocio.
A61: Evolución previsible del mercado actual: Estime la evolución del mercado actual en los próximos 3 años.
A63: Año n+1 | B63: % variación | C63: valor | E63: Año n+2 | F63: % variación | G63: valor | I63: Año n+3 | J63: % variación | K63: valor
A64: =D48 -> Segmento 1 | B64: 0.1 | C64: =(E48*B64)+E48 -> 385000 | E64: =D48 -> Segmento 1 | F64: 0.05 | G64: =(C64*F64)+C64 -> 404250 | I64: =D48 -> Segmento 1 | J64: -0.02 | K64: =(G64*J64)+G64 -> 396165
A65: =D49 -> Segmento 2 | B65: 0.12 | C65: =(E49*B65)+E49 -> 201600 | E65: =D49 -> Segmento 2 | F65: -0.04 | G65: =(C65*F65)+C65 -> 193536 | I65: =D49 -> Segmento 2 | J65: 0.01 | K65: =(G65*J65)+G65 -> 195471.36
A66: =D50 -> Segmento 3 | B66: 0.08 | C66: =(E50*B66)+E50 -> 270000 | E66: =D50 -> Segmento 3 | F66: 0.09 | G66: =(C66*F66)+C66 -> 294300 | I66: =D50 -> Segmento 3 | J66: 0.11 | K66: =(G66*J66)+G66 -> 326673
A67: =D51 -> Segmento 4 | B67: 0.15 | C67: =(E51*B67)+E51 -> 368000 | E67: =D51 -> Segmento 4 | F67: 0.12 | G67: =(C67*F67)+C67 -> 412160 | I67: =D51 -> Segmento 4 | J67: -0.03 | K67: =(G67*J67)+G67 -> 399795.2
A88: Es muy importante que reflexione detenidamente antes de dar respuesta a las cuestiones planteadas. Ésta es la primera decisión estratégica que tiene que tomar su empresa.
A90: RESUMEN DE LA PLANIFICACIÓN DE LA SEGMENTACIÓN
A92: En este apartado se intentarán concretar los aspectos más significativos relativos a la estrategia de segmentación que acometerá la empresa, a través de las cuestiones anteriormente planteadas.
H94: FASE 3 | J94: FASE 5

Sheet 5. MENSAJE
A1: 5. DETERMINAR EL MENSAJE A TRANSMITIR. | H1: MENÚ PRINCIPAL | J1: FASE 6
A3: Una vez que tenemos definidos los objetivos del plan de comunicación y el target group al que nos dirigimos, habrá que definir los contenidos de la comunicación que la empresa va a difundir. Se trata de concretar el mensaje e idea que se desean transmitir.
A4: Los mensajes resumen la "esencia" del proyecto/servicio/producto. Siendo simples y concretos, suponen la base para todas las actividades de difusión y deben ser relevantes para el público objetivo. Los mensajes recordarán los objetivos y pondrán de relieve el valor añadido y los beneficios que el proyecto aportará.
A6: Especifique cuáles son los aspectos a difundir, el mensaje que utilizará para ello y la actividad concreta que lo materializará. Se adjunta tabla con un ejemplo a modo de ayuda. Elimine el contenido de las celdas de la tabla siguiente y escriba en el interior de cada casilla.
B8: Aspectos a difundir | E8: Mensaje | H8: Ej. de actividad o resultado concreto
B9: La creatividad como base de la innovación y de la competitividad | E9: “Creatividad e Imaginación son la base de la innovación en nuestra sociedad /empresas” | H9: Mensaje para las jornadas de difusión de la guía de buenas prácticas
B10: Las ideas y la creatividad son esenciales para el crecimiento económico | E10: “Nuevas ideas para seguir creciendo – la creatividad crea empleo y riqueza” | H10: Mensaje para el Informe Final, la Conferencia final y la Página web
B11: La calidad como base para fidelizar a la clientela | E11: "La calidad del producto y del servico postventa -- determinantes del comportamiento del consumidor y de la supervicencia de la empresa" | H11: Mensaje en el primer folleto general
B12: Intercambio de experiencias en el ámbito de la creatividad empresarial | E12: “Ser creativo, ser emprendedor, ser innovador – aprender creando en compañía” | H12: Mensaje para invitación a y el material promocional de los talleres de creatividad
A14: Además de lo anterior e íntimamente relacionado, uno de los elementos más característicos de la publicidad es el eslogan. Un eslogan es una frase o lema utilizado con fines comerciales y publicitarios. Su objetivo es promocionar y general una asociación entre la ventaja, cualidad o virtud principal y la marca.
A15: El eslogan publicitario es un elemento imprescindible en un anuncio, porque ayuda a divulgar el producto y contribuye a influir en el ánimo del receptor. Tiene un alto grado de eficacia porque se puede repetir y tiene carácter persuasivo. Pero solo es repetible si es fácil de entender, es breve, conciso y sorprendente; y solo tiene poder de convicción si ofrece argumentos que atraigan y hagan actuar al destinatario.
A16: El eslogan debe ser un elemento persuasivo que busca generar alta recordación en la persona que lo lee o escucha. Las características más relevantes de un eslogan exitoso son:
A17: Facilidad de comprensión.
A18: Brevedad.
A19: Concisión.
A20: Capacidad de atracción.
A21: En los siguientes enlaces podemos ver algunas técnicas de creatividad para obtener un buen eslogan o resolver un problema del producto, como el Brainstorming; Análisis Morfológico o la Sinéctica: http://alejandralmiron.fullblog.com.ar/tecnicas-desarrollo-de-la-creatividad.html http://www.neuronilla.com/desarrolla-tu-creatividad/tecnicas-de-creatividad
A22: Algunos ejemplos de eslóganes publicitarios son:
B23: Fácil comprensión: "Hola, ¿Qué tal? Muy bien con OKAL" | E23: Brevedad: "Mégane, ¿Conduces o te conducen?" (Nuevo Renault) | H23: Concisión: " Conservamos lo auténtico" (Litoral)
B24: Capacidad de atracción: " Un desodorante que no te abandona" (Rexona) | E24: Capacidad de atracción: " Hoy me siento FLEX" | H24: Capacidad de atracción: " Péinate chic, péinate GRAFIC"
A26: A continuación, partiendo de las reflexiones anteriores, construya su propio eslogan.
A30: Es muy importante que reflexione detenidamente antes de dar respuesta a las cuestiones planteadas. Estamos ante la segunda decisión estratégica que tiene que adoptar la empresa.
A32: RESUMEN DEL MENSAJE
A34: En este apartado se intentarán concretar los aspectos más significativos relativos al mensaje que transmitirá la empresa, a través de las cuestiones anteriormente planteadas
H36: FASE 4 | J36: FASE 6

Sheet 6. PRESUPUESTO
A1: 6. PRESUPUESTO. | H1: MENÚ PRINCIPAL | J1: FASE 7
A3: En esta fase se determinan los recursos necesarios, tanto humanos como materiales y económicos, que el Plan va a absorber en su desarrollo total.
A5: Describa el mix de comunicación que va a establecer para cada segmento de mercado, qué porcentaje va a suponer cada componente del mix sobre el total de inversión en comunicación, y el por qué de esta decisión.
B7: PRESUPUESTO PLAN DE COMUNICACIÓN
B8: HERRAMIENTA | C8: PASES (FRECUENCIA) | E8: COSTE, €
C9: TOTAL | D9: % | E9: TOTAL | F9: %
B10: Prensa | C10: 9 | D10: =C10/$C$15 -> 0.03474903475 | E10: 450 | F10: =E10/$E$15 -> 0.02097902098
B11: Radio | C11: 60 | D11: =C11/$C$15 -> 0.2316602317 | E11: 1800 | F11: =E11/$E$15 -> 0.08391608392
B12: TV | C12: 180 | D12: 0.694980695 | E12: 18000 | F12: 0.8391608392
B13: Web | C13: 9 | D13: 0.03474903475 | E13: 0 | F13: 0
B14: Vallas exteriores | C14: 1 | D14: 0.003861003861 | E14: 1200 | F14: 0.05594405594
B15: TOTAL | C15: =SUM(C10:C14) -> 259 | D15: 1 | E15: =SUM(E10:E14) -> 21450 | F15: 1
A17: RESUMEN DEL PRESUPUESTO
A19: En este apartado se intentarán concretar los aspectos más significativos relativos a la concreción del presupuesto asignado al plan de comunicación, a través de las cuestiones anteriormente planteadas
H21: FASE 5 | J21: FASE 7

Sheet 7. ESTRATEGIA - PLAN DE MEDIOS
A1: 7. ESTRATEGIA DE COMUNICACIÓN Y PLAN DE MEDIOS | H1: MENÚ PRINCIPAL | J1: FASE 8
A3: Con el fin de responder de manera específica a los diversos grupos destinatarios, las diversas acciones y materiales elaborados para su difusión se agruparán en tres ejes de actuación:
A5: 1. Comunicación interna: entre los socios de la empresa / proyecto. Incluye la difusión de los informes de evaluación intermendia y final del proyecto /campaña.
A6: La estrategia de la Comunicación interna tiene como objetivo la sistematización y estructuración de la información de forma que garantice una gestión eficaz y transparente del proyecto, así como asegurar una fluida y eficiente comunicación entre los directamente involucrados, es decir, los socios del proyecto. Esto se pretende alcanzar mediante el uso de las siguientes herramientas, por ejemplo: • Elaborar conjuntamente y compartir los Informes de Actividad • Intranet habilitada en la página Web del proyecto/empresa con las siguientes herramientas de gestión y de intercambio de información: o Acceso habilitado y seguro para cada socio o Archivo compartido de documentos – posible la subida y descarga de documentos o Acceso a documentos actualizados de planificación y gestión (Plan de Trabajo, Distribución Tareas, Acuerdo de Colaboración, Plantillas de Informes, Modelos de Notas de Prensa, Modelos de Cuestionarios de Satisfacción, Manual de Imagen Corporativa) o Biblioteca con documentos y enlaces útiles para el trabajo de los socios. • Reuniones periódicas de Gestión. • Herramientas de telecomunicación (teléfono, correo electrónico, fax, videoconferencia, mensajería).
A9: 2. Comunicación externa: con los destinatarios directos y los potenciales beneficiarios.
A10: Dentro de la comunicación externa, existen diferentes estrategias para el marketing, la publicidad e internet.
A11: * ESTRATEGIAS DE MARKETING
A12: Marketing de captación: Su estrategia se basa en conseguir nuevos clientes. Esta estrategia es más habitual en el pasado. Ya que ahora es cada vez más difícil captar nuevos clientes y todo el esfuerzo se centra en mantener y mejorar las relaciones con los existentes. Políticas como precio o el lugar de ubicación de un producto son algunas de las herramientas que se utilizarán para alcanzar mayor número de clientes.
A13: Marketing de fidelización o retención: Su objetivo principal es mantener la fidelidad o lealtad de los clientes, aquellos que son los más rentables para la empresa, a través de una relación que produzca el mayor valor para el cliente. Esta estrategia se basa en prestar el mejor servicio al cliente, ofrecerle un producto personalizado a sus necesidades, poner en marcha programas de fidelización: regalos, tarjetas de puntos… En esta estrategia, los clientes fieles son menos sensibles al precio y tienen un coste de cambio que representa una barrera para los competidores. Cuando un cliente se encuentra verdaderamente satisfecho con la oferta de la empresa, este puede actuar incluso como prescriptor de la misma, de ahí la importancia de esta estrategia.
A14: Marketing one to one: Consiste en una personalización total de la oferta y mensaje de la empresa. Se trata de conocer las necesidades del cliente y establecer una relación directa y especial con cada uno de ellos, one to one, uno a uno.
A15: Marketing viral o buzz: Es una estrategia que se basa en que son los propios clientes los que dan a conocer el producto a otras personas. Especialmente destaca esta estrategia a través de internet, donde son los propios consumidores que envían y dan a conocer la oferta de la empresa. Esta estrategia que cada vez se está desarrollando con mayor importancia debido a la saturación publicitaria, puede utilizar foros donde los consumidores dejan sus opiniones u otras herramientas como el desarrollo de juegos o acciones de publicidad más innovadoras.
A16: Marketing directa: Estrategia que utiliza distintos medios publicitarios para conseguir una respuesta directa por parte del cliente. Generalmente busca el que se produzca la compra de la marca de la empresa, aunque también es muy común buscar generar contactos.
A17: Marketing relacional: Consiste en tratar de establecer una relación entre la empresa y el cliente. Una relación que sea duradera y beneficiosa para ambas partes.
A18: Marketing emocional o experiencial: El marketing emocional se centra en la gestión de las experiencias vividas por cada cliente con la marca y la empresa. En este sentido es fundamental crear un mundo para el cliente donde este participe.
A19: Marketing permisivo:Estrategia de marketing donde la empresa ya cuenta anticipadamente con el permiso del cliente para poder hacerle llegar ofertas comerciales. Dentro del ámbito del marketing, las herramientas para la gestión de la comunicación más importantes son: - Buzoneo. - Publicidad en el lugar de venta (PLV). - Animación en el lugar de venta. - Juegos promocionales. - Tarjetas de fidelización. - Vales descuentos. - Premios. - Reembolso. - Muestras. - Marketing de guerrilla o street marketing - Telemarketing - Marketing telefónico - Marketing móvil - Fuerza de ventas - Merchandising - Catálogos. - Escaparatismo. - Mobiliario, señalización, displays, cartelería en el lugar de venta…
A20: ESTRATEGIAS DE PUBLICIDAD
A21: Estrategia Above the line (ATL):Estrategia que implica el empleo de medios tradicionales o convencionales para publicitar la oferta y los mensajes de la empresa. Se trata de una estrategia que utiliza medios masivos para llegar al mayor número de público objetivo. Entre los medios masivos se encuentran: la televisión, radio, prensa y la publicidad exterior.
A22: Estrategia Below the line (BTL): El empleo de una estrategia below the line se centra en utilizar medios no convencionales, que se caracterizan por ser menos masivos y más directos. Algunos de ellos son: las relaciones públicas, internet, marketing directo, promociones…
A23: Estrategias 360º: Se basan en la utilización de todos los medios publicitarios masivos y no masivos.
A24: Dentro del ámbito de la publicidad, las herramientas para la gestión de la comunicación más importantes son: - Publicidad en el teléfono móvil - Publicidad en TV, prensa y radio. - Publicidad en mobiliario urbano y vallas exteriores. - Publicidad en packaging.
A25: ESTRATEGIAS WEB
A26: Registro en buscadores u otros directorios: Consiste en dar de alta la referencia web de la empresa en los principales buscadores de internet, con el objetivo de que se muestra la web de la empresa entre los resultados de búsqueda de los usuarios/as de internet. El registro por ejemplo en directorios empresariales u otras páginas también es una de las estrategias de comunicación web.
A27: Patrocinio de palabras claves o anuncios en buscadores: Estrategia basada en elegir aquellas palabras con las que la empresa define lo que quiere comunicar.
A28: Enlaces en otras páginas o bartering: Intercambio de enlaces en páginas web o bartering (intercambio promocional), consiste en publicar enlaces a la página web de la empresa u otras páginas propias en otras páginas web.
A29: Microsites y comunidades virtuales: Webs desarrolladas específicamente para dar a conocer una acción en concreto de la empresa. Con carácter general suelen tener una validez determinada en el tiempo, pues son creadas para una actividad en concreto. Una comunidad virtual es un punto de encuentro en internet para que usuarios/as con intereses comunes puedan chalar, debatir, compartir información…
A30: E-mail marketing: Utilización del correo electrónico como herramienta de comunicación directa y personalizada con el usuario. Este medio de comunicación está desbancando al fax y al correo postal, como otras formas de comunicación. En parte debido a: el bajo coste de la comunicación, que no depende de la distancia ni del número de destinatarios/as, la rapidez, posibilidad de adjuntar ficheros así como las distintas técnicas que ofrece como puede ser la posibilidad de encriptación.
A31: Publicidad en internet: Otra forma de publicidad en diferentes páginas web a través de banners o anuncios publicitarios en internet, ventanas emergentes o pop ups, botones… que aparecen cuando el usuario/a consulta otras páginas y contenidos web.
A32: E-commerce: Intercambio de información y pago de los productos a través de internet. La entrega final se realiza en el mundo real, salvo aquellos bienes que pueden ser digitalizados. La estrategia de e-commerce supone ofrecer al consumidor un nuevo canal de venta diferente de las formas tradicionales, venta directa, a través de correo postal o por teléfono.
A33: Dentro del ámbito de internet, las herramientas para la gestión de la comunicación más relevantes son: - Programas o servicios de publicidad a través de google adwards o Microsoft advertising. - Anuncios: banners (pequeños rectángulos que contienen imágenes), pop up Windows (ventanas emergentes que contienen un mensaje publicitario y se activan de forma automática al consultar una página), pop under windows (ventanas que se abren detrás de la que está en uso y sólo pueden visualizarse cuando se cierra esta), superstitials (spots publicitarios multimedia que se ejecutan en ventanas independientes), layers (logos o imágenes que se desplazan por la pantalla), advertorials (mensajes de texto que se muestran desplazándose en un recuadro dentro de la página web seleccionada), product placement (botones y/o texto insertado en la página web con el nombre del producto), patrocinio (presencia destacada del anunciante en una determinada sección del web contratado). - Publicidad en buscadores: enlaces patrocinados o enlaces espontáneos. - Microsites - E-mail marketing - Redes sociales y profesionales: Twenty, Facebook, Twitter, Xing, Linked in… - Juegos - Blogs y videoblogs o Blogs - Webs de vídeos y fotos: Flirck, You tube, Picassa… - Otros recursos: RSS, Twitter, webs de intercambio, Wikipedia, buscadores (google, yahoo…), Skype, Culturízame, google maps…
A35: 3. Difusión general: Se informará a la sociedad en general, a través de herramientas de comunicación de uso público, de información relativa al proyecto/empresa/producto/servicio…
A36: La empresa debe nombrar a un/os responsable/s del proyecto. Como responsable de comunicación deberá velar por el buen desarrollo del Plan, controlar que todas las actividades que están incluidas en el formulario del proyecto se llevan a cabo de forma exitosa y que las acvtividades de comunicación de cada beneficiario sean coherentes entre sí. El responsable de comunicación ayudará a coordinar las diferentes actividades de comunicación de la empresa.
A39: En base a las estrategias de comunicación anteriormente mencionadas, reflexione e indique por cuáles opta su empresa
A43: Por otro lado, para proceder a la planificación temporal del Plan de Comunicación, normalmente, se establecen los tiempos de atrás hacia adelante y se efectúa una planificación completa y bastante general para el medio y largo plazo y otra, con mayor detalle, para el corto que, en el caso de la Comunicación, es mensual o trimestral.
A45: De nada servirá una planificación meticulosa si, posteriormente, no es posible llevarla a efecto. La única razón de ser de un Plan es poder alcanzar los objetivos previstos en el escenario establecido. De ahí la importancia de una buena implementación del mismo, considerando aquellos puntos clave que se han definido en las etapas anteriores: objetivos, públicos a los que se dirige, mensajes a transmitir, medios y soportes a utilizar, recursos a aplicar y expectativas a crear con la estrategia de Comunicación.
A47: Llegados a este punto tenemos que tener claros los objetivos, cuáles son nuestros grupos de destinatarios y las actividades/herramientas que vamos a utilizar. A continuación le proponemos que utilice la siguiente tabla para establecer la relación entre las tres variables mencionadas (le facilitamos un ejemplo que deberá eliminar y rellenar en base al plan de comunicación que está diseñando):
B49: Destinatarios | C49: Destinatarios directos internos | D49: Destinatarios directos externos | E49: Destinatarios generales
B50: Objetivos | E50: Decisores políticos | F50: Medios de comunicación | G50: Sociedad
B51: Comunicación sistematizada | C51: Página web Herramientas web Informes de actividad
B52: Información fluida | C52: Reuniones Herramientas de telecomunicación
B53: Divulgar el proyecto | D53: Página Web Folletos | E53: Página Web Folletos | F53: Página Web Folletos | G53: Página Web Folletos
B54: Dar a conocer resultados | D54: Página Web Folletos | E54: Página Web Folletos | F54: Página Web Folletos | G54: Página Web Folletos
B55: Material de referencia de trabajo | D55: Publicaciones Seminarios Mesas Talleres | E55: Publicaciones Páginas Web Eventos
B56: Nuevos conocimientos como base para decisión política | E56: Publicaciones Páginas Web Eventos
B57: Promover la creatividad y la innovación | D57: Publicaciones Seminarios Mesas Talleres | G57: Publicaciones Páginas Web Folletos
B58: Comunicación transparente | F58: Notas de prensa | G58: Notas de prensa Eventos
A60: Definida la estrategia o modo de desarrollar la comunicación, a continuación detalle el plan de medios y cronograma a seguir: planificación en el tiempo de cada una de las actividades a desarrollar y los medios que se utilizarán para ello.
A62: Según el estudio Infoadex de la inversión publicitaria en España 2011, en el año 2010 la inversión real estimada que registró el mercado publicitario se situó en 12.883,8 mill €, lo que representa un crecimiento del 1,4% sobre el año anterior.
A63: Según el citado estudio, los medios convencionales experimentaron en 2010 un crecimiento del 3,9% respecto a 2009, situándose en los 5.849,5 mill €, suponiendo sobre el mercado total un 45,4%. Por otra parte, los medios no convencionales representaron en 2010 el 54,6% de la inversión total, experimentando un decrecimiento del 0,6% respecto al año anterior.
A64: Los medios convencionales, ordenados de mayor a menor según su cifra de inversión en 2010, son: Televisión (42,3%), diarios (19,2%), internet (13,5%), radio (9,4%), exterior ( 7,2%: carteles, luminosos, monopostes...), revistas (6,8%), dominicales (1,2%) y cine (0,4%).
A65: Los medios no convencionales, ordenados de mayor a menor según su cifra de inversión en 2010, son: mailing personalizado (29%), merchandising, señalizaciones y rótulos (18%), marketing telefónico (15,7%), buzoneos y folletos (11,2%), actos de patrocinio, mecenazgo, marketing social y R.S.C. (7,6%), actos de patrocinio deportivo (6,7%), anuarios, guías y directorios (5,5%), regalos publicitarios (1,8%), catálogos (1,6%), ferias y exposiciones (1,2%) y animación en puntos de ventas (0,9%).
A67: Para ello, ayúdese de la siguiente tabla (para cada plan de comunicación habrá que ajustar el cronograma al periodo de aplicación del plan. Las unidades mínimas pueden ser días (para planes de comunicación con un breve periodo de implantación) o meses (para planes con implantación a largo plazo). En nuestro caso planteamos un ejemplo de Plan de Comunicación a implantar en 2 meses, por lo que se desglosa el cronograma de acciones a desarrollar en "días":
D69: CRONOGRAMA RESUMEN DE CAMPAÑA 01/01/2012 - 29/02/2012
A70: HERRAMIENTAS | B70: TOTAL PASES | C70: COSTE UNITARIO | D70: OBSERVACIONES | E70: COSTE TOTAL | F70: 2012-01-01 | G70: 2012-01-02 | H70: 2012-01-03 | I70: 2012-01-04 | J70: 2012-01-05 | K70: 2012-01-06 | L70: 2012-01-07 | M70: 2012-01-08 | N70: 2012-01-09 | O70: 2012-01-10 | P70: 2012-01-11 | Q70: 2012-01-12 | R70: 2012-01-13 | S70: 2012-01-14 | T70: 2012-01-15 | U70: 2012-01-16 | V70: 2012-01-17 | W70: 2012-01-18 | X70: 2012-01-19 | Y70: 2012-01-20 | Z70: 2012-01-21 | AA70: 2012-01-22 | AB70: 2012-01-23 | AC70: 2012-01-24 | AD70: 2012-01-25 | AE70: 2012-01-26 | AF70: 2012-01-27 | AG70: 2012-01-28 | AH70: 2012-01-29 | AI70: 2012-01-30 | AJ70: 2012-01-31 | AK70: 2012-02-01 | AL70: 2012-02-02 | AM70: 2012-02-03 | AN70: 2012-02-04 | AO70: 2012-02-05 | AP70: 2012-02-06 | AQ70: 2012-02-07 | AR70: 2012-02-08 | AS70: 2012-02-09 | AT70: 2012-02-10 | AU70: 2012-02-11 | AV70: 2012-02-12 | AW70: 2012-02-13 | AX70: 2012-02-14 | AY70: 2012-02-15 | AZ70: 2012-02-16 | BA70: 2012-02-17 | BB70: 2012-02-18 | BC70: 2012-02-19 | BD70: 2012-02-20 | BE70: 2012-02-21 | BF70: 2012-02-22 | BG70: 2012-02-23 | BH70: 2012-02-24 | BI70: 2012-02-25 | BJ70: 2012-02-26 | BK70: 2012-02-27 | BL70: 2012-02-28 | BM70: 2012-02-29
A71: Prensa | B71: =SUM(F71:BM71) -> 9 | C71: 50 | D71: Anuncio 1 vez/semana | E71: =B71*C71 -> 450 | G71: 1 | N71: 1 | U71: 1 | AB71: 1 | AI71: 1 | AP71: 1 | AW71: 1 | BD71: 1 | BK71: 1
A72: Radio | B72: =SUM(F72:BM72) -> 60 | C72: 30 | D72: Cuña diaria de 45 seg | E72: =B72*C72 -> 1800 | F72: 1 | G72: 1 | H72: 1 | I72: 1 | J72: 1 | K72: 1 | L72: 1 | M72: 1 | N72: 1 | O72: 1 | P72: 1 | Q72: 1 | R72: 1 | S72: 1 | T72: 1 | U72: 1 | V72: 1 | W72: 1 | X72: 1 | Y72: 1 | Z72: 1 | AA72: 1 | AB72: 1 | AC72: 1 | AD72: 1 | AE72: 1 | AF72: 1 | AG72: 1 | AH72: 1 | AI72: 1 | AJ72: 1 | AK72: 1 | AL72: 1 | AM72: 1 | AN72: 1 | AO72: 1 | AP72: 1 | AQ72: 1 | AR72: 1 | AS72: 1 | AT72: 1 | AU72: 1 | AV72: 1 | AW72: 1 | AX72: 1 | AY72: 1 | AZ72: 1 | BA72: 1 | BB72: 1 | BC72: 1 | BD72: 1 | BE72: 1 | BF72: 1 | BG72: 1 | BH72: 1 | BI72: 1 | BJ72: 1 | BK72: 1 | BL72: 1 | BM72: 1
A73: TV | B73: =SUM(F73:BM73) -> 180 | C73: 100 | D73: TV local. 3 Anuncios diarios en prime tame | E73: 18000 | F73: 3 | G73: 3 | H73: 3 | I73: 3 | J73: 3 | K73: 3 | L73: 3 | M73: 3 | N73: 3 | O73: 3 | P73: 3 | Q73: 3 | R73: 3 | S73: 3 | T73: 3 | U73: 3 | V73: 3 | W73: 3 | X73: 3 | Y73: 3 | Z73: 3 | AA73: 3 | AB73: 3 | AC73: 3 | AD73: 3 | AE73: 3 | AF73: 3 | AG73: 3 | AH73: 3 | AI73: 3 | AJ73: 3 | AK73: 3 | AL73: 3 | AM73: 3 | AN73: 3 | AO73: 3 | AP73: 3 | AQ73: 3 | AR73: 3 | AS73: 3 | AT73: 3 | AU73: 3 | AV73: 3 | AW73: 3 | AX73: 3 | AY73: 3 | AZ73: 3 | BA73: 3 | BB73: 3 | BC73: 3 | BD73: 3 | BE73: 3 | BF73: 3 | BG73: 3 | BH73: 3 | BI73: 3 | BJ73: 3 | BK73: 3 | BL73: 3 | BM73: 3
A74: Web | B74: =SUM(F74:BM74) -> 9 | C74: 0 | D74: E-mail semanal | E74: 0 | G74: 1 | N74: 1 | U74: 1 | AB74: 1 | AI74: 1 | AP74: 1 | AW74: 1 | BD74: 1 | BK74: 1
A75: Vallas exteriores | B75: 1 | C75: 1200 | D75: Valla publicitaria en la Crta. N-IV, Hm 3,5. | E75: 1200
B76: TOTAL PASES | E76: =SUM(E71:E75) -> 21450 | F76: =SUM(F71:F75) -> 4 | G76: =SUM(G71:G75) -> 6 | H76: 4 | I76: 4 | J76: =SUM(J71:J75) -> 4 | K76: =SUM(K71:K75) -> 4 | L76: 4 | M76: =SUM(M71:M75) -> 4 | N76: =SUM(N71:N75) -> 6 | O76: 4 | P76: =SUM(P71:P75) -> 4 | Q76: =SUM(Q71:Q75) -> 4 | R76: 4 | S76: =SUM(S71:S75) -> 4 | T76: =SUM(T71:T75) -> 4 | U76: 6 | V76: =SUM(V71:V75) -> 4 | W76: =SUM(W71:W75) -> 4 | X76: 4 | Y76: =SUM(Y71:Y75) -> 4 | Z76: =SUM(Z71:Z75) -> 4 | AA76: 4 | AB76: =SUM(AB71:AB75) -> 6 | AC76: =SUM(AC71:AC75) -> 4 | AD76: =SUM(AD71:AD75) -> 4 | AE76: =SUM(AE71:AE75) -> 4 | AF76: =SUM(AF71:AF75) -> 4 | AG76: =SUM(AG71:AG75) -> 4 | AH76: =SUM(AH71:AH75) -> 4 | AI76: =SUM(AI71:AI75) -> 6 | AJ76: =SUM(AJ71:AJ75) -> 4 | AK76: =SUM(AK71:AK75) -> 4 | AL76: =SUM(AL71:AL75) -> 4 | AM76: =SUM(AM71:AM75) -> 4 | AN76: =SUM(AN71:AN75) -> 4 | AO76: =SUM(AO71:AO75) -> 4 | AP76: =SUM(AP71:AP75) -> 6 | AQ76: =SUM(AQ71:AQ75) -> 4 | AR76: =SUM(AR71:AR75) -> 4 | AS76: =SUM(AS71:AS75) -> 4 | AT76: =SUM(AT71:AT75) -> 4 | AU76: =SUM(AU71:AU75) -> 4 | AV76: =SUM(AV71:AV75) -> 4 | AW76: =SUM(AW71:AW75) -> 6 | AX76: =SUM(AX71:AX75) -> 4 | AY76: =SUM(AY71:AY75) -> 4 | AZ76: =SUM(AZ71:AZ75) -> 4 | BA76: =SUM(BA71:BA75) -> 4 | BB76: =SUM(BB71:BB75) -> 4 | BC76: =SUM(BC71:BC75) -> 4 | BD76: =SUM(BD71:BD75) -> 6 | BE76: =SUM(BE71:BE75) -> 4 | BF76: =SUM(BF71:BF75) -> 4 | BG76: =SUM(BG71:BG75) -> 4 | BH76: =SUM(BH71:BH75) -> 4 | BI76: =SUM(BI71:BI75) -> 4 | BJ76: =SUM(BJ71:BJ75) -> 4 | BK76: =SUM(BK71:BK75) -> 6 | BL76: =SUM(BL71:BL75) -> 4 | BM76: =SUM(BM71:BM75) -> 4
A91: Definida la estrategia o modo de desarrollar la comunicación, el plan de medios y cronograma a seguir, así como el coste de la campaña, a continuación le recomendamos que durante y post el desarrollo de la misma, ayudándose de la siguiente tabla, mida el impacto de la campaña entre su público objetivo.
A93: Nomenclatura publicitaria:
A95: Impactos: Cada vez que una persona de nuestro público objetivo ve u oye nuestra publicidad en un medio. No se consideran impactos las tomas de contacto con una persona que no es nuestro público objetivo.
A96: “Gross Raiting Point” (G.R.P.): Medida de la Audiencia publicitaria de un medio, equibalente al 1% del público objetivo total de una campaña o producto. Es un número absoluto. G.R.P. = (Nº de Impactos / público objetivo total) x 100
A97: Cobertura (Alcance): Es el porcentaje de nuestro público objetivo que hemos impactado en nuestra campaña. Cobertura= (personas del público objetivo impactadas / público objetivo total) x 100
A98: “Oportunity to see”(OTS): Es el número médio de impactos por persona impactada. O.T.S. = G.R.P. / Cobertura
A99: Coste por Raiting Point: Es el coste de cada Raiting Poing conseguido en la campaña. Coste por R.P. = Coste de la campaña / G.R.P.
A100: Coste por impacto: Se extrae de dividir el coste de la campaña por el número de impactos. Coste por Impacto = Coste de la campaña / Nº de Impactos
A101: G.R.P. Ponderado: G.R.P. X Impacto
A102: Coste por persona impactada: Coste de la campaña por cada persona impactada. Coste por persona Impactada = (Coste de la campaña x 100) / (Público objetivo total x Cobertura)
A104: MEDIO | B104: COSTE CAMPAÑA | C104: AUDIENCIA | D104: IMPACTO | E104: GRP | F104: GRP PONDERADO | G104: COBERTURA | H104: OTS | I104: COSTE POR RP | J104: COSTE POR IMPACTO | K104: COSTE POR PERSONA
A105: Medio 1
A106: Medio n
A108: RESUMEN DE LA ESTRATEGIA DE COMUNICACIÓN Y PLAN DE MEDIOS
A110: En este apartado se intentarán concretar los aspectos más significativos relativos a la estrategia de comunicación y plan de acción que adoptará la empresa, a través de las cuestiones anteriormente planteadas
H112: FASE 6 | J112: FASE 8

Sheet 8. CONTROL Y SEGUIMIENTO
A1: 8. CONTROL Y SEGUIMIENTO DE SU REALIZACIÓN FÍSICA Y FINANCIERA. INDICADORES | H1: MENÚ PRINCIPAL | J1: FASE 9
A3: Todo Plan debe llevar incorporados aquellos indicadores que permitan detectar las desviaciones que se produzcan como consecuencia de las modificaciones, no previstas, en el Entorno o en las audiencias principalmente. Además, debe tener establecidos los posibles sistemas correctores que reconduzcan a la consecución de los objetivos a alcanzar y que permitan superar las posibles situaciones de crisis que puedan surgir. En el Plan de Comunicación es importante controlar, de forma permanente durante todo su desarrollo, la evolución de la Imagen Corporativa de la Organización, así como el grado de conocimiento de la misma, tanto espontáneo como sugerido, y el nivel de satisfacción con la estrategia de Comunicación implantada.
A5: Diseñe los mecanismos de seguimiento y control que va a establecer.
A7: Indicadores de realización: Son los indicadores que miden la ejecución financiera y física de las acciones llevadas a cabo. Se dividen dos tipos de indicadores: - De realizaciones financieras. Su función es computar los gastos en que se incurre en el proceso de realización de una acción; por ejemplo, el coste de realizar una campaña de buzoneo. - De realizaciones físicas. Reflejan el estado de avance o de ejecución física; por ejemplo, el número de folletos entregados buzón a buzón.
A9: Construya el/ los indicador/es de realización que le sirvan para llevar a cabo un seguimiento y control de la estrategia de comunicación. Podrá crear tantos indicadores como estime conveniente. Se adjunta plantilla de indicadores con un ejemplo. Utilice estas plantillas para crear sus propios indicadores.
A11: Tenga en cuenta que podrá crear indicadores que midan y evaluen la eficacia (cumplimiento de las previsiones) y la eficiencia (nivel de esfuerzos para desarrollar las tareas) del Plan:
D13: Indicadores | F13: Eficacia | H13: Eficiencia
D14: Realizaciones | F14: Realizaciones reales/previstas | H14: Realizaciones en comparación con los costes
D15: Resultados | F15: Resultados reales/previstos | H15: Resultados en comparación con los costes
D16: Impacto | F16: Impactos reales/previstos | H16: Impacto en comparación con los costes
A19: Código identificativo | C19: Tipo de indicador | D19: REALIZACIÓN | H19: Código identificativo | J19: Tipo de indicador | K19: REALIZACIÓN
A20: Denominación | B20: Publicidad en el teléfono móvil | H20: Denominación
A21: Objetivo con el que se relaciona | B21: Plan de comunicación | H21: Objetivo con el que se relaciona | I21: Plan de comunicación
A22: Definición normalizada | B22: Suscriptores en el ámbito nacional, a los que se les ha remitido sms promocional de nuestros servicios / productos, duante el periodo de campaña promocional (01/11/11 al 31/01/12), mediante un sms a su número de teléfiono móvil . | H22: Definición normalizada
A23: Procedimiento de elaboración | B23: Suma de los sms enviados informando de nuestra campaña promocional hasta el final del pediodo de promoción (31/01/12). | H23: Procedimiento de elaboración
A24: Unidad de medida | B24: sms enviados | C24: Periodicidad | D24: trimestral | H24: Unidad de medida | J24: Periodicidad
A25: Fuente | B25: Plataforma de lanzamiento de sms | H25: Fuente
A26: Departamento responsable | B26: Dpto. Marketing. | H26: Departamento responsable
A27: Contabilizable/ no contabilizable | B27: contabilizable | C27: Stock/flujo | D27: stock | H27: Contabilizable/ no contabilizable | J27: Stock/flujo
A28: Dimensional/adimensional | B28: Dimensional | C28: Absoluto/relativo | D28: Absoluto | H28: Dimensional/adimensional | J28: Absoluto/relativo
A30: RESUMEN DEL CONTROL Y SEGUIMIENTO
A32: En este apartado se intentarán concretar los aspectos más significativos relativos al control y seguimiento de la realización física y financiera del plan de comunicación que llevará a cabo la empresa, mediante la construcción de indicadores de realización, a través de las cuestiones anteriormente planteadas. Insertar tantas tablas como indicadores se hayan construido.
H34: FASE 7 | J34: FASE 9

Sheet 9. IMPACTO Y RESULTADOS
A1: 9. MEDIR SU IMPACTO Y RESULTADOS. INDICADORES. | H1: MENÚ PRINCIPAL | J1: FASE 10
A3: En esta fase se pretende medir los resultados e impactos de la estartegia llevada a cabo.
A4: Indicadores de resultado: Hacen referencia a los efectos directos e inmediatos producidos por una acción y están directamente relacionados con los objetivos específicos formulados en ella. La diversidad de los objetivos específicos de las acciones hace que estos indicadores abarquen un amplio espectro, refiriéndose a la reducción de un déficit, la cobertura de una determinada población objetivo, el aumento de la capacidad en servicios, la mejora en determinadas condiciones de los beneficiarios directos, etc.
A5: Indicadores de impacto: Registran las consecuencias de la acción más allá de los efectos inmediatos sobre sus beneficiarios directos. Los impactos pueden ser específicos o globales, los primeros están directamente relacionados con la acción, pero se generan después de transcurrido cierto tiempo, en tanto que los segundos se generan en colectivos distintos a los beneficiarios directos. Como los indicadores de impacto se formulan sobre la base de los objetivos globales establecidos para la acción, la fuente de información básica es el documento de planificación de la acción. Estos indicadores se obtienen mediante procedimientos extraordinarios, principalmente sondeos a beneficiarios directos o indirectos.
A7: Construya el/los indicador/es de resultados que le sirvan para llevar a cabo una evaluación de la estrategia de comunicación. Podrá crear tantos indicadores como estime conveniente. Utilice estas plantillas para crear sus propios indicadores.
A9: Código identificativo | C9: Tipo de indicador | D9: RESULTADO | H9: Código identificativo | J9: Tipo de indicador | K9: RESULTADO
A10: Denominación | B10: Volumen de compras inducido entre los suscriptores | H10: Denominación
A11: Objetivo con el que se relaciona | B11: Plan de Comunicación | H11: Objetivo con el que se relaciona
A12: Definición normalizada | B12: Volumen de compras inducido/realizado por los destinatarios de la campaña promocional llevada a cabo mediante sms a teléfonos móviles, en el ámbito geográfico en el que se ha realizado y en el periodo de tiempo que ha durado la campaña promocional | H12: Definición normalizada
A13: Procedimiento de elaboración | B13: Suma de las compras efectuadas desde el 01/11/11 al 31/01/12 a nivel nacional. | H13: Procedimiento de elaboración
A14: Unidad de medida | B14: euros | C14: Periodicidad | D14: trimestral | H14: Unidad de medida | J14: Periodicidad
A15: Fuente | B15: Contabilidad de la empresa (Ingresos netos por ventas) | H15: Fuente
A16: Departamento responsable | B16: Dpto. Contabilidad | H16: Departamento responsable
A17: Contabilizable/ no contabilizable | B17: Contabilizable | C17: Stock/flujo | D17: Stock | H17: Contabilizable/ no contabilizable | J17: Stock/flujo
A18: Dimensional/adimensional | B18: Dimensional | C18: Absoluto/relativo | D18: Absoluto | H18: Dimensional/adimensional | J18: Absoluto/relativo
A21: Construya el/ los indicador/es de impacto específico que le sirvan para llevar a cabo una evaluación de la estrategia de comunicación. Podrá crear tantos indicadores como estime conveniente.
A23: Código identificativo | C23: Tipo de indicador | D23: IMPACTO | H23: Código identificativo | J23: Tipo de indicador | K23: IMPACTO
A24: Denominación | B24: Aumento de las ventas | H24: Denominación | I24: GRP´s
A25: Objetivo con el que se relaciona | B25: Plan de Comunicación | H25: Objetivo con el que se relaciona | I25: Plan de Comunicación
A26: Definición normalizada | B26: Aumento de las ventas (EXPRESADAS EN EUROS) | H26: Definición normalizada | I26: Gross Rating Point
A27: Procedimiento de elaboración | B27: Diferencial entre las ventas realizadas a nuestros suscriptores en el trimestre 01/11/11 - 31/01/12 con respecto las ventas del mismo periodo del año anterior (01/11/10 - 31/01/11). | H27: Procedimiento de elaboración | I27: Resultado de multiplicar la "cobertura" x "OTS". La cobertura se mide como el porcentaje de personas de nuestro público objetivo que ha visto/oído… nuestro anuncio al menos una vez. Opportunuty to see (OTS) hace referencia al número de veces de media que cada persona que ha visto/oído nuestro anuncio.
A28: Unidad de medida | B28: % | C28: Periodicidad | D28: trimestral | H28: Unidad de medida | I28: GRP´s (medida de impacto que ha alcanzado una campaña) | J28: Periodicidad
A29: Fuente | B29: Contabilidad de la empresa (Ingresos netos por ventas) | H29: Fuente | I29: Empresa externa
A30: Departamento responsable | B30: Dpto. Contabilidad | H30: Departamento responsable | I30: Dpto. Marketing
A31: Contabilizable/ no contabilizable | B31: No contabilizable | C31: Stock/flujo | D31: Flujo | H31: Contabilizable/ no contabilizable | I31: contabilizable | J31: Stock/flujo | K31: stock
A32: Dimensional/adimensional | B32: Dimensional | C32: Absoluto/relativo | D32: Relativo | H32: Dimensional/adimensional | I32: Dimensional | J32: Absoluto/relativo | K32: Absoluto
A34: RESUMEN DE IMPACTOS Y RESULTADOS
A36: En este apartado se intentarán concretar los aspectos más significativos relativos a la medición de resultados e impactos del plan de comunicación llevado a cabo, mediante la construcción de indicadores de impacto y resultados, a través de las cuestiones anteriormente planteadas. Insertar tantas tablas como indicadores se hayan construido.
H38: FASE 8 | J38: FASE 10

Sheet 10. MARKETING P.COM.
A1: 10. MARKETING DEL PLAN DE COMUNICACIÓN. | H1: MENÚ PRINCIPAL
A4: Una vez que el Plan está definido, es necesario “venderlo” a los ejecutivos implicados en su desarrollo y a los públicos, externos e internos, interesados en el mismo. De ahí la conveniencia de proceder a hacer reuniones con directivos, en donde se les explique las líneas maestras del Plan y sus objetivos e implicaciones. Es aconsejable, en estos eventos, entregar un “Resumen Ejecutivo” del Plan de Comunicación que contenga una visión global del mismo, la justificación de su formulación, los objetivos que se pretenden y una explicación de las posibles repercusiones que para la entidad y sus Grupos de Interés pueda representar.
D8: RESUMEN EJECUTIVO PLAN DE COMUNICACIÓN

Sheet Hoja1 (hidden)

Sheet Hoja2
